bitfinex/quotes_SOLUSD_20241029
["timestamp","ask_amount","ask_price","bid_price","bid_amount"]
[1730228725251,1.3815234,181.01,180.93,23.776884]
[1730228725252,10.54646399,180.97,180.93,23.776884]
[1730228725744,10.54646399,180.96,180.93,25.86170814]
[1730228726330,10.54646399,180.95,180.93,25.86170814]
[1730228727729,10.54646399,180.97,180.93,25.86170814]
[1730228727929,10.54646399,180.96,180.93,25.86170814]
[1730228728132,10.54646399,180.97,180.93,25.86170814]
[1730228728642,1.38161427,181.01,180.93,36.40817213]
[1730228728847,11.92807826,181.01,180.97,23.776884]
[1730228729052,10.54646399,181.0,180.97,23.776884]
[1730228729248,10.54646399,181.01,180.96,34.32334799]
[1730228729550,10.54646399,181.0,180.96,23.776884]
[1730228730146,10.54646399,181.0,180.98,23.776884]
[1730228730337,10.54646399,181.0,180.96,23.776884]
[1730228730752,10.54646399,180.99,180.96,23.776884]
[1730228731064,10.54646399,180.98,180.94,23.776884]
[1730228731561,10.54646399,180.99,180.94,34.32334799]
[1730228732253,10.54646399,180.98,180.94,23.776884]
[1730228732457,10.54646399,180.99,180.94,34.32334799]
[1730228734156,10.54646399,180.98,180.94,23.776884]
[1730228734332,10.54646399,180.99,180.94,34.32334799]
[1730228734533,10.54646399,180.98,180.94,23.776884]
[1730228734733,10.54646399,180.98,180.93,23.776884]
[1730228735344,10.54646399,180.95,180.92,23.776884]
[1730228735660,10.54646399,180.95,180.91,23.776884]
[1730228735844,10.54646399,180.96,180.92,23.776884]
[1730228736041,10.54646399,180.97,180.92,23.776884]
[1730228736559,10.54646399,180.97,180.92,34.32334799]
[1730228736960,10.54646399,180.96,180.92,23.776884]
[1730228737163,10.54646399,180.95,180.92,23.776884]
[1730228737460,10.54646399,180.95,180.91,23.776884]
[1730228737755,10.54646399,180.95,180.9,23.776884]
[1730228738662,10.54646399,180.95,180.9,34.32334799]
[1730228739237,10.54646399,180.92,180.9,23.776884]
[1730228739437,1.38172487,180.94,180.9,23.776884]
[1730228739438,10.54646399,180.91,180.9,23.776884]
[1730228739756,10.54646399,180.91,180.89,5.87213791]
[1730228739958,10.54646399,180.9,180.88,2.04857461]
[1730228740178,1.38191301,180.93,180.85,0.5899329]
[1730228740179,10.54646399,180.89,180.85,0.5899329]
[1730228740453,10.54646399,180.88,180.85,0.5899329]
[1730228741941,10.54646399,180.88,180.86,23.776884]
[1730228742155,1.38191301,180.93,180.87,0.12549]
[1730228742356,6.3942,180.97,180.87,0.12549]
[1730228742357,6.3942,180.97,180.91,34.32334799]
[1730228742548,16.48283158,180.97,180.93,23.776884]
[1730228743367,16.48283158,180.94,180.92,23.776884]
[1730228744143,16.48283158,180.94,180.91,23.776884]
[1730228744460,16.48283158,180.96,180.91,40.25971558]
[1730228745176,16.48283158,180.95,180.91,23.776884]
[1730228746368,16.48283158,180.92,180.86,6.13531569]
[1730228746667,15.3231,180.98,180.86,6.13531569]
[1730228746668,16.48283158,180.9,180.86,6.13531569]
[1730228747072,16.48283158,180.91,180.86,6.13531569]
[1730228747662,16.48283158,180.91,180.87,23.776884]
[1730228748480,16.48283158,180.9,180.87,23.776884]
[1730228748652,16.48283158,180.89,180.87,23.776884]
[1730228749253,16.48283158,180.9,180.87,23.776884]
[1730228749461,16.48283158,180.89,180.87,23.776884]
[1730228750056,16.48283158,180.88,180.87,23.776884]
[1730228751651,16.48283158,180.88,180.86,23.776884]
[1730228751873,16.48283158,180.87,180.86,23.776884]
[1730228752177,16.48283158,180.87,180.85,0.5899329]
[1730228752387,1.38243207,180.86,180.85,0.5899329]
[1730228752678,17.86526365,180.86,180.85,0.5899329]
[1730228753972,17.86526365,180.86,180.85,24.3668169]
[1730228755154,17.86526365,180.86,180.85,0.5899329]
[1730228755562,17.86526365,180.86,180.78,6.13531569]
[1730228755769,16.48283158,180.79,180.78,6.13531569]
[1730228756779,16.48283158,180.79,180.78,31.94806175]
[1730228757076,16.48283158,180.79,180.78,29.91219969]
[1730228757656,16.48283158,180.79,180.78,23.776884]
[1730228763410,1.48266522,180.88,180.78,23.776884]
[1730228763411,16.48283158,180.8,180.78,23.776884]
[1730228763561,16.48283158,180.8,180.79,23.776884]
[1730228764373,1.48251316,180.89,180.79,23.776884]
[1730228764583,16.48283158,180.8,180.79,23.776884]
[1730228764884,21.48251316,180.89,180.79,23.776884]
[1730228765194,16.48283158,180.8,180.79,23.776884]
[1730228766783,16.48283158,180.8,180.76,0.05251188]
[1730228766987,16.48283158,180.77,180.76,0.05251188]
[1730228767197,16.48283158,180.77,180.76,2.13244903]
[1730228768093,16.48283158,180.77,180.76,25.90933303]
[1730228768274,16.48283158,180.77,180.76,2.13244903]
[1730228768481,16.48283158,180.77,180.76,0.05251188]
[1730228768680,16.48283158,180.77,180.67,0.63291023]
[1730228768993,16.48283158,180.69,180.67,2.69095566]
[1730228769171,16.48283158,180.69,180.67,0.63291023]
[1730228769370,16.48283158,180.68,180.67,0.63291023]
[1730228770388,16.48283158,180.69,180.67,0.63291023]
[1730228771396,16.48283158,180.71,180.68,30.03768969]
[1730228771692,16.48283158,180.69,180.68,30.03768969]
[1730228772073,16.48283158,180.69,180.68,6.13531569]
[1730228772388,16.48283158,180.69,180.67,0.63291023]
[1730228772604,15.9258,180.74,180.67,6.76822592]
[1730228772769,15.9258,180.78,180.68,42.61814727]
[1730228772970,16.48283158,180.74,180.68,42.61814727]
[1730228773273,16.48283158,180.73,180.68,42.61814727]
[1730228773490,16.48283158,180.73,180.7,0.12549]
[1730228774200,15.9258,180.78,180.72,0.12549]
[1730228774494,0.2,180.85,180.72,0.12549]
[1730228774495,5.74757472,180.8,180.73,23.876884]
[1730228774709,16.48283158,180.79,180.76,0.12549]
[1730228775289,16.48283158,180.82,180.76,16.60832158]
[1730228775606,16.48283158,180.82,180.79,23.776884]
[1730228775792,16.48283158,180.81,180.79,23.776884]
[1730228776698,16.48283158,180.8,180.79,23.776884]
[1730228777018,16.48283158,180.81,180.79,23.902374]
[1730228777716,1.3825565,180.86,180.79,23.902374]
[1730228778020,16.48283158,180.82,180.8,0.12549]
[1730228778437,16.48283158,180.81,180.8,0.12549]
[1730228778794,1.38238548,180.86,180.8,0.12549]
[1730228778995,16.48283158,180.82,180.8,0.12549]
[1730228779496,16.48283158,180.83,180.8,0.12549]
[1730228779901,16.48283158,180.82,180.8,0.12549]
[1730228780105,32.96566316,180.81,180.74,5.78799902]
[1730228780298,32.96566316,180.81,180.72,7.12817283]
[1730228780299,1.38246137,180.8,180.79,2.0455596]
[1730228781102,1.38246137,180.8,180.68,16.48283158]
[1730228781302,16.48283158,180.75,180.71,23.902374]
[1730228781491,16.48283158,180.75,180.71,20.12549]
[1730228781992,16.48283158,180.74,180.71,20.12549]
[1730228782190,16.48283158,180.74,180.71,0.12549]
[1730228782587,16.48283158,180.73,180.7,0.12549]
[1730228783022,16.48283158,180.73,180.72,23.902374]
[1730228783229,15.5888,180.79,180.72,40.38520558]
[1730228783389,16.48283158,180.78,180.73,36.48283158]
[1730228783719,15.5888,180.83,180.74,23.902374]
[1730228783720,16.48283158,180.79,180.74,23.902374]
[1730228783893,16.48283158,180.8,180.74,40.38520558]
[1730228784093,16.1121,180.87,180.78,23.902374]
[1730228784300,16.48283158,180.81,180.78,23.902374]
[1730228784515,16.48283158,180.8,180.78,23.902374]
[1730228784709,16.48283158,180.81,180.78,23.902374]
[1730228784919,16.48283158,180.8,180.78,23.902374]
[1730228785517,16.48283158,180.82,180.78,0.12549]
[1730228785700,16.48283158,180.84,180.8,0.12549]
[1730228786013,16.48283158,180.85,180.8,0.12549]
[1730228786322,16.1121,180.87,180.8,0.12549]
[1730228786323,16.48283158,180.83,180.8,0.12549]
[1730228786899,16.48283158,180.85,180.8,0.12549]
[1730228787416,16.48283158,180.87,180.82,23.902374]
[1730228787798,16.48283158,180.87,180.81,16.58283158]
[1730228787799,16.48283158,180.88,180.84,23.902374]
[1730228787997,16.48283158,180.85,180.78,2.03561569]
[1730228788201,7.7316128,180.87,180.72,15.9631]
[1730228788202,16.48283158,180.79,180.72,15.9631]
[1730228788431,16.48283158,180.76,180.72,4.78279887]
[1730228788601,22.5306,180.87,180.75,16.48283158]
[1730228788805,16.48283158,180.81,180.75,16.48283158]
[1730228789407,16.48283158,180.8,180.74,16.48283158]
[1730228789612,16.48283158,180.81,180.76,0.1]
[1730228789826,16.48283158,180.81,180.77,23.902374]
[1730228790234,16.48283158,180.81,180.79,23.902374]
[1730228791240,16.48283158,180.81,180.72,12.16961725]
[1730228791241,16.48283158,180.8,180.72,6.85939601]
[1730228791438,16.48283158,180.77,180.73,20.0]
[1730228791937,16.48283158,180.76,180.72,6.85939601]
[1730228792141,16.48283158,180.77,180.72,6.85939601]
[1730228792342,16.48283158,180.77,180.72,2.07659714]
[1730228792517,16.48283158,180.77,180.73,0.12549]
[1730228793339,16.48283158,180.8,180.76,23.902374]
[1730228793714,16.48283158,180.79,180.76,23.902374]
[1730228794038,16.48283158,180.79,180.76,0.12549]
[1730228794543,16.48283158,180.86,180.8,23.776884]
[1730228794730,6.3668,180.92,180.8,23.776884]
[1730228794731,16.48283158,180.89,180.85,23.902374]
[1730228795114,16.48283158,180.89,180.85,0.12549]
[1730228795527,16.48283158,180.91,180.87,0.12549]
[1730228795739,16.48283158,180.9,180.87,23.902374]
[1730228796042,16.48283158,180.89,180.87,23.902374]
[1730228796231,16.48283158,180.9,180.87,23.902374]
[1730228796617,16.48283158,180.91,180.87,0.12549]
[1730228797034,16.48283158,180.88,180.86,23.776884]
[1730228797242,16.48283158,180.87,180.86,23.776884]
[1730228798351,16.48283158,180.9,180.86,23.776884]
[1730228798644,16.48283158,180.88,180.86,0.12549]
[1730228799432,16.48283158,180.89,180.86,0.12549]
[1730228799820,16.48283158,180.87,180.86,0.12549]
[1730228800040,16.48283158,180.87,180.85,23.776884]
[1730228800252,16.48283158,180.87,180.85,23.902374]
[1730228801547,16.48283158,180.86,180.85,23.776884]
[1730228803649,16.48283158,180.86,180.76,23.09663158]
[1730228803845,16.48283158,180.81,180.78,0.135]
[1730228804046,16.48283158,180.8,180.74,16.48283158]
[1730228804254,16.48283158,180.79,180.77,0.135]
[1730228804624,16.48283158,180.79,180.74,16.48283158]
[1730228805049,16.48283158,180.79,180.73,16.48283158]
[1730228805527,16.48283158,180.78,180.72,22.58973158]
[1730228805726,16.48283158,180.77,180.72,6.1069]
[1730228806230,16.48283158,180.81,180.7,16.48283158]
[1730228806231,16.48283158,180.76,180.7,16.48283158]
[1730228806643,16.48283158,180.75,180.7,16.48283158]
[1730228807350,16.48283158,180.74,180.69,16.48283158]
[1730228807645,16.48283158,180.75,180.7,23.902374]
[1730228808230,16.48283158,180.74,180.7,23.902374]
[1730228808549,16.48283158,180.73,180.68,23.02523158]
[1730228808940,16.48283158,180.73,180.68,16.48283158]
[1730228809725,16.48283158,180.73,180.69,0.12549]
[1730228810042,16.48283158,180.74,180.71,0.12549]
[1730228817049,22.21488552,180.81,180.74,43.902374]
[1730228817050,5.73205394,180.81,180.74,43.902374]
[1730228817238,32.48763158,180.84,180.79,23.776884]
[1730228817562,16.0048,180.84,180.79,40.25971558]
[1730228817745,16.48283158,180.86,180.81,40.25971558]
[1730228817951,16.48283158,180.88,180.82,16.60832158]
[1730228818159,16.48283158,180.88,180.83,0.12549]
[1730228818343,16.48283158,180.86,180.83,0.12549]
[1730228818850,16.48283158,180.86,180.82,0.12549]
[1730228819050,16.48283158,180.86,180.82,20.12549]
[1730228819244,16.48283158,180.86,180.83,23.776884]
[1730228819449,16.48283158,180.85,180.83,23.776884]
[1730228819962,16.48283158,180.86,180.83,23.776884]
[1730228820357,16.48283158,180.88,180.84,0.12549]
[1730228820557,16.48283158,180.87,180.84,0.12549]
[1730228820862,16.48283158,180.86,180.84,0.12549]
[1730228821037,16.48283158,180.85,180.83,23.776884]
[1730228821240,16.48283158,180.86,180.83,23.776884]
[1730228821440,16.48283158,180.85,180.83,23.776884]
[1730228823456,16.48283158,180.84,180.83,23.776884]
[1730228824154,16.48283158,180.85,180.83,23.776884]
[1730228824946,16.6259,180.89,180.85,23.776884]
[1730228825146,33.10873158,180.89,180.85,23.776884]
[1730228825345,33.10873158,180.89,180.84,23.902374]
[1730228825869,16.48283158,180.88,180.83,23.902374]
[1730228826254,16.48283158,180.88,180.83,40.38520558]
[1730228826648,16.48283158,180.88,180.83,23.902374]
[1730228829063,16.48283158,180.88,180.83,40.38520558]
[1730228830671,33.10873158,180.89,180.83,40.38520558]
[1730228830865,16.48283158,180.89,180.84,16.48283158]
[1730228831068,16.48283158,180.91,180.86,23.902374]
[1730228831254,16.48283158,180.9,180.86,23.902374]
[1730228832166,16.48283158,180.87,180.86,23.776884]
[1730228835266,16.48283158,180.87,180.78,5.93244347]
[1730228835466,16.48283158,180.83,180.78,22.41527505]
[1730228835983,16.48283158,180.83,180.78,5.93244347]
[1730228836375,16.48283158,180.84,180.79,22.00683158]
[1730228836552,16.48283158,180.84,180.8,49.426374]
[1730228836867,15.9736,180.93,180.83,40.38520558]
[1730228837067,16.48283158,180.88,180.83,23.902374]
[1730228837462,16.48283158,180.89,180.86,0.12549]
[1730228837871,16.48283158,180.88,180.86,0.12549]
[1730228838687,16.48283158,180.87,180.86,0.12549]
[1730228839062,16.48283158,180.87,180.81,5.524]
[1730228839382,16.48283158,180.85,180.82,5.64949]
[1730228839767,16.48283158,180.86,180.82,5.64949]
[1730228840277,16.48283158,180.86,180.82,25.64949]
[1730228840582,16.48283158,180.86,180.83,23.776884]
[1730228840781,16.48283158,180.87,180.83,23.776884]
[1730228841086,16.48283158,180.86,180.83,23.776884]
[1730228841377,16.48283158,180.9,180.86,23.902374]
[1730228841982,15.9736,180.93,180.86,23.902374]
[1730228841983,16.48283158,180.87,180.86,23.776884]
[1730228842879,16.48283158,180.88,180.86,23.776884]
[1730228843058,16.48283158,180.9,180.88,23.776884]
[1730228843371,16.48283158,180.89,180.88,23.776884]
[1730228843969,16.48283158,180.9,180.88,23.776884]
[1730228844957,16.48283158,180.89,180.87,29.300884]
[1730228845358,16.48283158,180.91,180.87,0.12549]
[1730228845557,16.48283158,180.92,180.87,16.60832158]
[1730228845860,16.48283158,180.91,180.87,0.12549]
[1730228848478,16.48283158,180.9,180.87,0.12549]
[1730228849054,16.48283158,180.88,180.86,2.03097689]
[1730228849258,16.48283158,180.87,180.83,0.12549]
[1730228849457,16.48283158,180.85,180.83,0.12549]
[1730228849680,16.48283158,180.84,180.79,6.3744]
[1730228849890,16.48283158,180.83,180.78,16.48283158]
[1730228850079,16.48283158,180.84,180.78,16.48283158]
[1730228850388,1.38221465,180.89,180.83,16.48283158]
[1730228850580,16.48283158,180.89,180.84,16.48283158]
[1730228850777,16.48283158,180.87,180.83,5.93244347]
[1730228851391,16.48283158,180.89,180.84,16.48283158]
[1730228851598,16.48283158,180.89,180.85,0.12549]
[1730228851766,16.48283158,180.87,180.85,0.12549]
[1730228852697,15.9736,180.93,180.87,23.776884]
[1730228852898,32.45643158,180.93,180.88,0.12549]
[1730228853365,16.48283158,180.92,180.88,0.12549]
[1730228854781,16.48283158,180.91,180.88,0.12549]
[1730228854977,15.9736,180.93,180.88,0.12549]
[1730228854978,16.48283158,180.92,180.88,0.12549]
[1730228855871,16.48283158,180.95,180.89,60.25971558]
[1730228856076,16.48283158,180.92,180.9,0.12549]
[1730228857788,16.48283158,180.91,180.89,25.7676122]
[1730228858383,16.48283158,180.9,180.89,25.7676122]
[1730228858892,16.48283158,180.9,180.89,23.776884]
[1730228859392,16.48283158,180.9,180.88,23.776884]
[1730228859600,16.48283158,180.89,180.88,23.776884]
[1730228860385,21.845466,180.97,180.88,46.19215905]
[1730228860577,16.1061,180.97,180.92,23.776884]
[1730228860789,16.48283158,180.96,180.92,23.776884]
[1730228860986,16.48283158,180.95,180.92,23.776884]
[1730228861188,16.48283158,180.95,180.9,23.776884]
[1730228861798,16.48283158,180.95,180.9,40.25971558]
[1730228862679,16.48283158,180.91,180.9,23.776884]
[1730228863487,16.48283158,180.92,180.9,23.776884]
[1730228863997,16.48283158,180.91,180.9,23.776884]
[1730228864597,16.48283158,180.92,180.9,23.776884]
[1730228865301,16.48283158,180.92,180.91,23.776884]
[1730228865502,1.38163203,180.96,180.92,23.776884]
[1730228865705,16.48283158,180.93,180.92,23.776884]
[1730228869286,16.48283158,180.94,180.92,23.776884]
[1730228869700,16.48283158,180.93,180.92,23.776884]
[1730228870201,16.48283158,180.93,180.89,2.00638848]
[1730228870404,16.48283158,180.9,180.85,20.0]
[1730228870586,16.48283158,180.88,180.83,22.41527505]
[1730228871491,16.48283158,180.88,180.84,23.902374]
[1730228872089,1.38196517,180.94,180.87,20.0]
[1730228872281,16.48283158,180.9,180.88,23.776884]
[1730228872482,16.48283158,180.9,180.84,0.12549]
[1730228872681,5.73948144,180.95,180.85,5.93244347]
[1730228872904,1.38191256,180.94,180.85,5.93244347]
[1730228873106,16.48283158,180.91,180.85,5.93244347]
[1730228873405,16.48283158,180.9,180.85,5.93244347]
[1730228873588,16.48283158,180.9,180.85,22.41527505]
[1730228873793,16.48283158,180.9,180.86,43.776884]
[1730228875410,16.48283158,180.92,180.88,43.776884]
[1730228875785,16.48283158,180.91,180.88,43.776884]
[1730228876013,16.48283158,180.91,180.88,49.300884]
[1730228876880,16.48283158,180.89,180.88,43.776884]
[1730228878184,16.48283158,180.89,180.88,23.776884]
[1730228879585,31.50893158,180.89,180.88,23.776884]
[1730228882014,16.48283158,180.9,180.88,43.776884]
[1730228882505,15.0614,180.93,180.9,23.776884]
[1730228882884,16.48283158,180.91,180.9,23.776884]
[1730228883194,32.96566316,180.91,180.84,43.776884]
[1730228883401,16.48283158,180.85,180.84,43.776884]
[1730228883688,15.0614,180.93,180.84,43.776884]
[1730228883689,16.48283158,180.88,180.84,43.776884]
[1730228883904,16.48283158,180.87,180.84,43.776884]
[1730228884101,16.48283158,180.9,180.86,43.776884]
[1730228885215,16.48283158,180.89,180.86,43.776884]
[1730228885396,16.48283158,180.88,180.86,43.776884]
[1730228885596,16.48283158,180.9,180.87,0.12549]
[1730228886614,16.48283158,180.88,180.86,43.776884]
[1730228888896,16.48283158,180.89,180.86,43.776884]
[1730228890187,15.0614,180.93,180.88,23.776884]
[1730228890420,16.48283158,180.89,180.84,2.06472049]
[1730228890594,16.48283158,180.88,180.83,16.48283158]
[1730228890790,15.734,180.98,180.87,16.48283158]
[1730228891091,16.48283158,180.94,180.89,16.48283158]
[1730228891301,16.48283158,180.94,180.9,11.85366569]
[1730228891516,15.734,180.98,180.9,11.85366569]
[1730228891821,16.48283158,180.95,180.91,43.776884]
[1730228892192,15.734,180.98,180.93,16.48283158]
[1730228892397,16.2561,181.03,180.98,23.776884]
[1730228892601,16.48283158,181.02,180.98,23.776884]
[1730228892894,16.48283158,181.01,180.98,23.776884]
[1730228893098,16.2561,181.03,180.98,23.776884]
[1730228893505,16.48283158,181.01,181.0,23.776884]
[1730228893707,16.48283158,181.01,181.0,43.776884]
[1730228895295,16.48283158,181.02,181.01,20.0]
[1730228895494,16.48283158,181.02,181.01,43.776884]
[1730228898508,34.34684745,181.02,181.01,23.776884]
[1730228898911,34.34684745,181.02,180.95,43.776884]
[1730228899225,16.48283158,180.96,180.95,20.0]
[1730228899625,16.48283158,180.96,180.91,5.37140256]
[1730228899812,16.48283158,180.92,180.91,6.32966569]
[1730228900001,1.38147122,180.98,180.91,6.32966569]
[1730228900201,16.48283158,180.92,180.91,6.32966569]
[1730228900412,16.48283158,180.92,180.87,5.37140256]
[1730228900608,16.48283158,180.9,180.88,6.32966569]
[1730228900804,16.48283158,180.89,180.87,5.37140256]
[1730228901031,16.6439,180.96,180.82,0.95971667]
[1730228901032,16.48283158,180.88,180.85,6.32966569]
[1730228901927,16.48283158,180.89,180.86,20.0]
[1730228902134,1.38188043,180.95,180.86,26.32966569]
[1730228902135,16.48283158,180.88,180.86,26.32966569]
[1730228902425,16.48283158,180.88,180.87,43.902374]
[1730228902622,16.48283158,180.9,180.88,20.12549]
[1730228902826,16.48283158,180.91,180.9,43.902374]
[1730228903020,16.48283158,180.92,180.91,43.776884]
[1730228903539,16.6439,180.96,180.95,23.776884]
[1730228903829,33.12673158,180.96,180.95,43.776884]
[1730228904216,16.48283158,180.96,180.95,43.776884]
[1730228904410,16.48283158,180.96,180.95,43.902374]
[1730228904739,16.48283158,180.99,180.96,43.902374]
[1730228904942,21.4483,181.04,180.98,20.0]
[1730228905116,21.4483,181.04,181.0,20.0]
[1730228905441,1.38112977,181.03,181.02,23.776884]
[1730228905650,34.34679293,181.03,180.95,20.0]
[1730228905943,16.48283158,180.96,180.95,20.0]
[1730228907546,16.48283158,180.96,180.95,20.12549]
[1730228907844,16.48283158,180.96,180.95,43.902374]
[1730228908233,16.48283158,180.98,180.97,43.776884]
[1730228908440,16.48283158,180.98,180.97,20.0]
[1730228908943,16.48283158,180.98,180.91,23.776884]
[1730228909144,16.48283158,180.96,180.94,20.12549]
[1730228909434,16.48283158,180.99,180.96,20.0]
[1730228910225,16.48283158,180.97,180.96,43.776884]
[1730228913536,16.48283158,180.97,180.96,20.0]
[1730228913728,16.48283158,180.97,180.91,20.0]
[1730228913929,16.48283158,180.99,180.9,23.902374]
[1730228913930,16.48283158,180.93,180.9,23.902374]
[1730228914124,16.48283158,180.91,180.9,23.776884]
[1730228914437,16.48283158,180.91,180.88,11.62160256]
[1730228915523,16.48283158,180.91,180.89,43.776884]
[1730228915833,16.48283158,180.9,180.89,43.776884]
[1730228916033,16.48283158,180.9,180.89,43.902374]
[1730228916744,16.48283158,180.91,180.89,43.902374]
[1730228917417,16.48283158,180.92,180.89,43.902374]
[1730228917617,16.48283158,180.91,180.89,43.902374]
[1730228919623,16.48283158,180.92,180.89,43.902374]
[1730228920548,16.48283158,180.91,180.89,43.902374]
[1730228920924,1.38146713,180.98,180.89,43.902374]
[1730228920925,16.48283158,180.92,180.89,43.902374]
[1730228922346,5.73019088,181.0,180.9,0.12549]
[1730228922542,16.48283158,180.95,180.9,0.12549]
[1730228922744,16.48283158,180.95,180.92,0.12549]
[1730228922929,16.48283158,180.97,180.92,16.60832158]
[1730228923130,16.48283158,180.97,180.95,20.0]
[1730228923340,16.48283158,180.97,180.96,43.776884]
[1730228925462,16.48283158,180.97,180.96,49.426374]
[1730228925647,16.48283158,180.98,180.97,20.0]
[1730228925834,16.48283158,180.98,180.97,43.776884]
[1730228928154,16.48283158,181.0,180.99,43.776884]
[1730228928360,16.48283158,181.01,181.0,43.776884]
[1730228929854,16.48283158,181.01,180.98,20.0]
[1730228930042,15.3912,181.04,181.0,20.0]
[1730228930250,16.48283158,181.01,181.0,20.0]
[1730228930565,16.48283158,181.01,180.98,20.0]
[1730228930765,15.3912,181.04,180.98,20.0]
[1730228931069,16.48283158,180.99,180.98,20.0]
[1730228931362,16.48283158,180.99,180.98,43.776884]
[1730228934537,15.3912,181.04,180.99,29.426374]
[1730228934776,15.6442,181.08,181.06,20.0]
[1730228935066,16.48283158,181.07,181.06,20.0]
[1730228935437,16.48283158,181.07,181.04,20.0]
[1730228935638,16.48283158,181.05,181.04,43.776884]
[1730228936547,10.53957736,181.05,181.04,43.776884]
[1730228938559,16.47040553,181.05,181.04,43.776884]
[1730228938751,16.47040553,181.05,181.0,3.5827166]
[1730228938954,16.47040553,181.01,181.0,3.5827166]
[1730228939456,16.47040553,181.02,181.0,3.5827166]
[1730228940344,16.47040553,181.02,181.01,43.776884]
[1730228940673,16.47040553,181.03,181.02,43.776884]
[1730228940965,15.6442,181.08,181.06,20.0]
[1730228942160,6.3788,181.12,181.06,20.0]
[1730228942358,16.47040553,181.09,181.08,43.776884]
[1730228942667,16.0656,181.13,181.1,20.0]
[1730228942871,1.38033143,181.12,181.02,0.12549]
[1730228943176,16.47040553,181.04,181.02,23.902374]
[1730228943468,16.47040553,181.11,181.08,23.776884]
[1730228943642,16.0656,181.13,181.09,20.0]
[1730228943846,16.47040553,181.1,181.09,20.0]
[1730228944047,16.47040553,181.1,181.06,23.776884]
[1730228944048,16.47040553,181.1,181.07,20.0]
[1730228944261,16.0656,181.13,181.09,20.0]
[1730228945174,16.47040553,181.1,181.09,20.0]
[1730228945376,16.47040553,181.1,181.09,43.776884]
[1730228947863,16.47040553,181.1,181.07,20.0]
[1730228948166,16.47040553,181.08,181.07,20.0]
[1730228948673,16.47040553,181.08,181.04,0.12549]
[1730228948853,16.47040553,181.05,181.03,20.0]
[1730228949055,16.47040553,181.04,181.03,20.0]
[1730228949255,16.47040553,181.04,181.03,20.12549]
[1730228949478,16.47040553,181.04,180.97,19.4357166]
[1730228949678,16.47040553,181.01,180.98,3.7082066]
[1730228949971,16.47040553,181.02,180.98,3.7082066]
[1730228950467,16.47040553,181.01,180.98,3.7082066]
[1730228950650,16.47040553,181.01,180.99,23.776884]
[1730228950847,16.47040553,181.01,181.0,43.902374]
[1730228951182,16.47040553,181.01,181.0,43.776884]
[1730228952069,16.47040553,181.02,181.01,23.776884]
[1730228952269,16.47040553,181.02,181.01,43.776884]
[1730228952452,16.47040553,181.02,181.01,43.902374]
[1730228953162,16.0656,181.13,181.04,20.12549]
[1730228953361,16.47040553,181.07,181.06,43.776884]
[1730228953676,16.47040553,181.07,181.06,43.902374]
[1730228954552,16.47040553,181.07,181.06,47.4850906]
[1730228956969,16.47040553,181.07,181.06,43.902374]
[1730228957478,16.47040553,181.07,181.06,43.776884]
[1730228959571,16.47040553,181.07,181.06,43.902374]
[1730228959776,16.47040553,181.07,181.06,47.4850906]
[1730228960160,16.47040553,181.07,181.06,53.0090906]
[1730228961556,16.47040553,181.07,181.06,43.776884]
[1730228962460,10.53655752,181.07,181.06,43.902374]
[1730228963460,10.53655752,181.07,181.06,49.426374]
[1730228964381,10.53655752,181.07,181.06,43.776884]
[1730228965487,10.53655752,181.07,181.01,3.5827166]
[1730228965779,10.53655752,181.02,181.01,3.5827166]
[1730228966463,1.38070294,181.12,181.01,3.5827166]
[1730228966666,10.53655752,181.03,181.01,3.5827166]
[1730228966862,10.53655752,181.03,181.02,43.902374]
[1730228967084,10.53655752,181.03,181.02,47.4850906]
[1730228967382,10.53655752,181.03,180.99,5.37140256]
[1730228967383,10.53655752,181.03,180.96,6.0935]
[1730228967579,10.53655752,180.98,180.97,3.5827166]
[1730228968286,10.53655752,180.98,180.95,5.37140256]
[1730228968477,10.53655752,180.96,180.95,5.37140256]
[1730228968660,10.53655752,180.96,180.89,3.5827166]
[1730228968861,10.53655752,180.92,180.89,3.5827166]
[1730228969173,31.60967256,180.99,180.89,3.5827166]
[1730228969377,10.53655752,180.9,180.89,5.6548816]
[1730228969881,10.53655752,180.9,180.89,49.5572556]
[1730228970379,6.5194,181.0,180.9,43.902374]
[1730228970576,5.94668282,180.95,180.91,3.5827166]
[1730228970889,5.94668282,180.95,180.94,43.902374]
[1730228974484,5.94668282,180.95,180.94,43.776884]
[1730228974673,5.94668282,180.95,180.89,3.03168024]
[1730228974870,16.48324034,180.91,180.89,4.82303854]